bitfinex-derivatives/quotes_SOLF0:USTF0_20260126
["timestamp","ask_amount","ask_price","bid_price","bid_amount"]
[1769463052759,2.38273033,124.38,124.31,9.35336457]
[1769463053362,7.244,124.37,124.31,9.35336457]
[1769463053563,7.244,124.37,124.33,0.0575851]
[1769463054071,7.244,124.37,124.31,9.35336457]
[1769463054368,0.06187715,124.36,124.31,9.35336457]
[1769463056862,2.44460748,124.36,124.31,9.35336457]
[1769463057871,2.44460748,124.36,124.28,11.7360949]
[1769463058069,2.44460748,124.36,124.29,9.35336457]
[1769463058374,7.2453,124.35,124.29,9.35336457]
[1769463058868,0.06060627,124.34,124.29,9.35336457]
[1769463060570,0.06060627,124.34,124.28,2.37469969]
[1769463060571,7.30650627,124.34,124.28,2.37469969]
[1769463060775,7.30650627,124.34,124.27,11.72806426]
[1769463061173,321.24,124.33,124.27,11.72806426]
[1769463061577,7.2469,124.32,124.25,11.72806426]
[1769463062182,0.05569909,124.3,124.25,11.72806426]
[1769463062567,0.05569909,124.3,124.26,9.35336457]
[1769463062772,0.05569909,124.3,124.22,11.72806426]
[1769463063274,2.37469969,124.31,124.22,11.72806426]
[1769463063484,7.2488,124.29,124.22,11.72806426]
[1769463063778,0.05085447,124.27,124.22,9.35336457]
[1769463064077,2.42555416,124.27,124.22,9.35336457]
[1769463064583,0.05085447,124.27,124.22,9.35336457]
[1769463065281,0.05085447,124.27,124.23,9.40812992]
[1769463068890,0.05085447,124.27,124.23,0.05476535]
[1769463070298,0.05085447,124.27,124.2,9.35336457]
[1769463070498,330.94559969,124.26,124.18,9.35336457]
[1769463071201,7.2511,124.25,124.18,9.35336457]
[1769463071599,0.05700006,124.23,124.18,9.35336457]
[1769463073703,2.37469969,124.22,124.18,9.35336457]
[1769463074400,2.43169975,124.23,124.18,9.35336457]
[1769463075794,2.37469969,124.21,124.16,9.35336457]
[1769463076603,9.62819969,124.21,124.16,9.35336457]
[1769463076897,0.05623158,124.2,124.16,9.35336457]
[1769463079601,7.31023158,124.2,124.14,9.35336457]
[1769463079807,2.37469969,124.19,124.14,9.35336457]
[1769463080605,0.06100323,124.18,124.14,9.35336457]
[1769463084205,220.52681496,124.24,124.17,9.32286295]
[1769463084408,321.5,124.22,124.17,9.32286295]
[1769463085600,0.05936943,124.21,124.17,9.32286295]
[1769463090514,7.31266943,124.21,124.17,9.32286295]
[1769463094216,9.62869969,124.2,124.12,9.63279969]
[1769463095414,9.62869969,124.2,124.15,0.05852383]
[1769463095815,7.2546,124.19,124.12,2.37469969]
[1769463096215,7.2546,124.19,124.13,7.88719129]
[1769463096411,7.2552,124.18,124.13,7.88719129]
[1769463096613,2.37469969,124.18,124.13,7.88719129]
[1769463096922,9.04025114,124.18,124.13,7.88719129]
[1769463097217,7.2563,124.16,124.13,7.88719129]
[1769463097920,0.05287614,124.17,124.13,7.88719129]
[1769463103926,313.61409006,124.18,124.13,10.26189098]
[1769463104132,313.61409006,124.18,124.14,7.88719129]
[1769463104326,313.61409006,124.18,124.14,7.94233782]
[1769463104931,328.854,124.2,124.14,7.94233782]
[1769463106626,7.2545,124.19,124.14,7.94233782]
[1769463107527,9.62919969,124.19,124.14,7.94233782]
[1769463109831,2.37469969,124.17,124.14,7.94233782]
[1769463110026,2.37469969,124.17,124.12,7.3789988]
[1769463110428,9.63049969,124.17,124.12,7.3789988]
[1769463110622,2.37469969,124.15,124.12,7.3789988]
[1769463111231,2.37469969,124.15,124.09,7.2603]
[1769463111426,2.42679303,124.15,124.09,7.2603]
[1769463112736,2.42679303,124.15,124.07,7.261]
[1769463112937,2.37469969,124.13,124.07,7.261]
[1769463113432,2.37469969,124.13,124.09,7.3789988]
[1769463113634,2.37469969,124.13,124.09,7.4363598]
[1769463114832,9.63279969,124.13,124.09,7.4363598]
[1769463115242,2.37469969,124.13,124.09,7.4363598]
[1769463119142,2.37469969,124.11,124.04,2.37469969]
[1769463119533,2.3835761,124.11,124.03,115.3693761]
[1769463119939,2.3835761,124.11,124.06,7.262]
[1769463120541,0.05654492,124.1,124.05,7.2627]
[1769463121244,0.05654492,124.1,124.06,2.99843049]
[1769463122849,2.3835761,124.09,124.06,2.99843049]
[1769463130768,2.3835761,124.09,124.04,3.46485944]
[1769463131668,0.05297826,124.08,124.04,3.46485944]
[1769463133767,0.05297826,124.08,124.0,2.3835761]
[1769463133768,2.3835761,124.07,124.0,3.59476525]
[1769463134162,2.3835761,124.07,124.01,3.59476525]
[1769463134768,0.05769085,124.05,124.01,3.59476525]
[1769463141369,0.05769085,124.05,124.01,10.85976525]
[1769463141571,0.05769085,124.05,124.02,4.00178334]
[1769463142372,2.3835761,124.07,124.03,3.98182386]
[1769463142572,2.3835761,124.09,124.03,3.98182386]
[1769463143863,2.3835761,124.09,124.03,11.24552386]
[1769463144071,2.3835761,124.09,124.04,4.01907528]
[1769463144274,2.3835761,124.09,124.05,4.08003798]
[1769463146774,2.3835761,124.08,124.05,0.0609627]
[1769463151270,8.47827317,124.09,124.05,0.0609627]
[1769463151979,2.3835761,124.08,124.05,0.0609627]
[1769463152181,2.43576351,124.08,124.05,0.0609627]
[1769463154390,2.43576351,124.08,124.04,4.16379871]
[1769463155681,2.3835761,124.06,124.02,4.43431688]
[1769463156583,0.05506921,124.05,124.02,4.43431688]
[1769463157884,2.3835761,124.04,124.0,11.76365086]
[1769463158074,2.3835761,124.04,124.01,4.49815086]
[1769463163189,0.05506921,124.05,124.01,4.49815086]
[1769463163387,2.43864531,124.05,124.01,4.49815086]
[1769463165292,2.3835761,124.04,123.99,4.71054615]
[1769463165590,2.3835761,124.03,123.99,4.71054615]
[1769463166389,0.05465258,124.02,123.99,4.71054615]
[1769463168993,2.3835761,124.03,124.0,4.86289868]
[1769463169193,2.3835761,124.04,124.0,4.86289868]
[1769463171397,2.3835761,124.04,124.01,0.05857193]
[1769463172600,0.05191278,124.04,124.01,5.00200557]
[1769463173698,8.78917767,124.01,123.95,4.99544823]
[1769463173900,2.3835761,124.0,123.95,4.99544823]
[1769463174293,2.3835761,124.03,123.97,5.05402016]
[1769463175095,0.05663137,124.01,123.97,5.05402016]
[1769463175396,0.05663137,124.01,123.98,5.0796664]
[1769463180897,18.43920361,124.04,123.98,5.0796664]
[1769463181201,18.43920361,124.04,123.98,5.13680283]
[1769463182307,0.051672,124.02,123.98,5.13680283]
[1769463189913,0.051672,124.02,123.98,12.40340283]
[1769463207025,2.43829794,124.02,123.98,5.13680283]
[1769463210023,2.43829794,124.02,123.98,12.40360283]
[1769463212833,0.051672,124.02,123.98,12.40360283]
[1769463213037,0.051672,124.02,123.98,5.13680283]
[1769463213429,11.90698157,124.05,123.98,5.13680283]
[1769463213733,7.2634,124.04,123.99,5.86292828]
[1769463214237,16.78375563,124.04,123.99,5.86292828]
[1769463214629,16.78375563,124.04,124.0,0.05544221]
[1769463214837,7.2627,124.05,124.0,5.93436503]
[1769463215137,9.64932594,124.05,124.0,5.93436503]
[1769463215837,2.38662594,124.05,124.0,5.93436503]
[1769463216032,2.38662594,124.05,124.01,5.89467061]
[1769463219039,19.16918157,124.06,124.01,5.89467061]
[1769463222234,11.90698157,124.06,124.01,5.89467061]
[1769463229636,11.90698157,124.06,124.02,6.10305045]
[1769463229840,2.38662594,124.06,124.02,6.10305045]
[1769463230636,2.38662594,124.06,124.03,6.16747274]
[1769463233039,2.38662594,124.07,124.03,6.16747274]
[1769463233745,9.4333005,124.08,124.03,6.16747274]
[1769463233945,11.81992644,124.08,124.03,6.16747274]
[1769463234946,2.38662594,124.1,124.04,6.16666901]
[1769463235441,2.38662594,124.1,124.05,13.44164672]
[1769463235642,19.07912644,124.11,124.06,6.17894672]
[1769463235842,2.38662594,124.1,124.06,6.23717196]
[1769463238048,11.81992644,124.11,124.06,6.23717196]
[1769463241552,11.816842,124.11,124.06,6.23717196]
[1769463241952,11.816842,124.11,124.06,13.49897196]
[1769463242154,2.3835415,124.12,124.07,6.24966083]
[1769463242747,11.816842,124.13,124.08,6.26092486]
[1769463243144,2.3835415,124.14,124.08,6.32120444]
[1769463243652,11.816842,124.14,124.08,6.32120444]
[1769463243950,11.816842,124.14,124.08,13.58200444]
[1769463244352,2.3835415,124.12,124.08,6.32120444]
[1769463244755,9.4333005,124.11,124.08,0.06027958]
[1769463245253,2.3835415,124.1,124.06,13.54478492]
[1769463245752,2.3835415,124.1,124.07,6.29417915]
[1769463252763,11.816842,124.09,124.05,6.36717761]
[1769463252964,2.3835415,124.09,124.05,6.36717761]
[1769463254865,2.3835415,124.07,124.03,6.38687848]
[1769463265468,2.3835415,124.05,124.01,6.50281215]
[1769463265669,12.02944003,124.05,123.98,6.51135248]
[1769463266268,7.2635,124.04,123.99,6.51135248]
[1769463267175,2.3835415,124.03,123.99,6.51135248]
[1769463275575,2.3835415,124.03,124.0,6.59059688]
[1769463275775,9.6463415,124.05,124.0,6.59059688]
[1769463275978,2.3835415,124.05,124.0,6.59059688]
[1769463276882,2.3835415,124.05,124.0,13.85619688]
[1769463278283,2.3835415,124.05,124.01,6.60536649]
[1769463280286,2.3835415,124.05,124.02,6.61978124]
[1769463281984,2.3835415,124.05,124.02,13.88418124]
[1769463282983,2.3835415,124.07,124.03,6.64096309]
[1769463284689,2.3835415,124.08,124.03,6.64096309]
[1769463290794,2.3835415,124.07,124.03,6.64096309]
[1769463297210,2.3835415,124.07,124.03,13.90456309]
[1769463297605,2.3835415,124.07,124.03,6.64096309]
[1769463301012,2.3835415,124.09,124.04,6.74982889]
[1769463301613,9.6429415,124.11,124.06,6.75537811]
[1769463302110,7.2598,124.1,124.06,6.75537811]
[1769463302600,2.3835415,124.09,124.04,6.76071761]
[1769463303608,2.38428457,124.09,124.04,6.76071761]
[1769463303807,2.38428457,124.09,124.04,14.02381761]
[1769463304210,2.38428457,124.09,124.05,6.76601414]
[1769463304410,2.38428457,124.11,124.06,6.76601414]
[1769463305216,9.64348457,124.11,124.06,6.76601414]
[1769463312320,2.38428457,124.08,124.04,6.80628776]
[1769463318824,11.60626526,124.08,124.03,14.10975465]
[1769463319026,11.60626526,124.08,124.04,6.84645465]
[1769463319226,2.38428457,124.08,124.04,6.84645465]
[1769463336637,2.38428457,124.08,124.04,14.10975465]
[1769463339540,2.38428457,124.08,124.05,7.2627]
[1769463340136,2.38428457,124.08,124.04,14.10965465]
[1769463347444,16.48198069,124.1,124.04,14.10965465]
[1769463347648,2.38428457,124.09,124.04,14.10965465]
[1769463364555,2.38428457,124.09,124.05,0.06135251]
[1769463364759,0.05963617,124.08,124.05,0.06135251]
[1769463365062,0.05963617,124.08,124.05,7.06328257]
[1769463365260,9.64348457,124.11,124.05,7.06328257]
[1769463365670,9.64270431,124.11,124.05,7.06328257]
[1769463365858,223.72518401,124.15,124.06,7.00449062]
[1769463366056,2.38350431,124.13,124.06,7.00449062]
[1769463366859,9.64170431,124.13,124.08,7.06038845]
[1769463372265,2.38350431,124.12,124.08,7.06038845]
[1769463373164,2.38350431,124.13,124.08,7.06038845]
[1769463373365,18.91295626,124.14,124.08,7.06038845]
[1769463374173,7.258,124.13,124.08,7.06038845]
[1769463377176,9.64150431,124.13,124.08,7.06038845]
[1769463377367,18.91345626,124.13,124.08,7.06038845]
[1769463380678,9.61313637,124.12,124.08,7.06038845]
[1769463381573,2.38350431,124.11,124.08,7.06038845]
[1769463382781,2.38350431,124.11,124.08,0.05340304]
[1769463383877,11.99664068,124.09,124.04,14.31960613]
[1769463384677,19.25704068,124.09,124.04,7.05630613]
[1769463386376,16.87353637,124.09,124.04,7.05630613]
[1769463386585,9.61313637,124.09,124.04,7.05630613]
[1769463387183,16.87353637,124.09,124.04,7.05630613]
[1769463393789,16.87273637,124.11,124.05,7.12911586]
[1769463394089,19.25624068,124.11,124.05,7.12911586]
[1769463394678,9.61313637,124.1,124.05,7.12911586]
[1769463394892,9.61313637,124.1,124.05,14.39171586]
[1769463396381,321.76,124.13,124.05,14.39171586]
[1769463396382,16.87183637,124.12,124.07,7.13262224]
[1769463409898,11.99664068,124.12,124.07,7.13262224]
[1769463415300,11.99664068,124.12,124.07,14.39412224]
[1769463415502,2.38350431,124.12,124.07,7.13262224]
[1769463417002,2.38350431,124.12,124.08,14.42082986]
[1769463418905,2.38350431,124.12,124.09,14.42305815]
[1769463419106,341.31981644,124.14,124.09,14.42305815]
[1769463420401,19.55981644,124.14,124.09,14.42305815]
[1769463421904,12.30231644,124.1,124.03,7.1669533]
[1769463422106,112.8881,124.15,124.03,7.1669533]
[1769463422107,2.38350431,124.08,124.03,7.1669533]
[1769463423101,2.38350431,124.08,124.04,7.2633]
[1769463423406,2.38350431,124.08,124.04,14.43159844]
[1769463425399,12.30231644,124.08,124.02,323.98491275]
[1769463425604,2.38350431,124.06,124.02,316.72091275]
[1769463427613,12.30377463,124.07,124.02,316.72091275]
[1769463428011,12.30377463,124.07,124.02,323.98521275]
[1769463431411,17.17921213,124.09,124.03,7.17886033]
[1769463431617,19.56417463,124.09,124.04,7.18007664]
[1769463434516,12.30377463,124.08,124.02,316.73365502]
[1769463434719,2.3849625,124.07,124.02,316.73365502]
[1769463434915,17.17991213,124.08,124.02,316.73365502]
[1769463435418,2.3849625,124.07,124.02,316.73365502]
[1769463435616,9.91881213,124.06,124.02,309.54989883]
[1769463435819,12.30377463,124.06,124.0,7.18504615]
[1769463437017,12.30377463,124.06,124.0,14.45054615]
[1769463438926,19.56587463,124.06,124.0,14.45054615]
[1769463440129,17.18091213,124.06,124.0,16.83550865]
[1769463440427,17.18091213,124.06,124.0,14.45054615]
[1769463442527,17.18091213,124.06,124.01,7.265]
[1769463443322,334.28420237,124.09,124.03,7.19986769]
[1769463444129,12.44420237,124.09,124.03,7.19986769]
[1769463445023,19.70480237,124.09,124.03,14.46346769]
[1769463445222,10.05923987,124.08,124.03,14.46346769]
[1769463450029,7.2606,124.09,124.04,14.47013157]
[1769463450333,10.05923987,124.09,124.04,14.47013157]
[1769463461741,12.44420237,124.09,124.04,14.47013157]
[1769463462939,2.3849625,124.08,124.04,14.47013157]
[1769463474747,2.3849625,124.08,124.04,7.20683157]
[1769463477049,11.79682512,124.08,124.02,7.22575839]
[1769463477952,7.2617,124.07,124.02,7.22575839]
[1769463482659,16.67356262,124.07,124.02,7.22575839]
[1769463490461,9.41186262,124.06,124.02,7.22575839]
[1769463490660,9.41186262,124.06,124.01,7.265]
[1769463491367,9.41186262,124.06,124.01,14.4975762]
[1769463492165,11.79679269,124.04,123.99,14.49862257]
[1769463495070,19.06009269,124.04,123.99,7.23302257]
[1769463495768,9.41186262,124.03,123.99,7.23302257]
[1769463502665,2.38493007,124.06,124.0,7.25592329]
[1769463502865,12.43433433,124.03,123.97,7.25592329]
[1769463503578,12.43433433,124.03,123.99,7.266]
[1769463504072,12.43433433,124.05,123.99,14.52228186]
[1769463513085,12.43433433,124.05,124.0,7.25821415]
[1769463513579,12.43433433,124.05,124.0,14.52371415]
[1769463514683,19.69593433,124.07,124.01,7.25873213]
[1769463514881,10.04940426,124.06,124.01,14.52373213]
[1769463518985,9.64653007,124.07,123.99,2.38493007]
[1769463518986,2.38493007,124.07,124.03,7.25943521]
[1769463519596,2.38493007,124.09,124.04,7.25943521]
[1769463520089,12.43433433,124.09,124.04,7.25943521]
[1769463521790,0.06029875,124.08,124.04,7.25943521]
[1769463522298,0.06029875,124.08,124.05,0.05810193]
[1769463525090,10.04940426,124.06,124.0,7.2652]
[1769463525297,2.38493007,124.04,123.99,7.31855477]
[1769463526597,0.05691937,124.03,123.99,7.31855477]
[1769463530908,12.5982792,124.02,123.97,7.30852794]
[1769463532606,12.5982792,124.01,123.95,7.30930664]
[1769463533500,0.06189654,123.99,123.95,7.30930664]
[1769463533900,0.06189654,123.99,123.95,14.57780664]
[1769463534605,0.06189654,123.99,123.95,7.30930664]
[1769463535505,10.27524567,123.99,123.94,7.31002947]
[1769463536411,12.66017574,123.99,123.94,7.31002947]
[1769463538411,12.66017574,123.99,123.94,14.57912947]
[1769463543920,2.38493007,124.02,123.96,7.31360576]
[1769463544319,12.5982792,124.02,123.96,7.31360576]
[1769463544919,12.5982792,124.02,123.97,7.2671]
[1769463549531,12.60040912,124.02,123.97,7.2671]
[1769463565739,19.86490912,124.02,123.97,7.2671]
[1769463566134,19.86490912,124.02,123.97,14.58654249]
[1769463577647,17.16402055,124.03,123.98,14.58904499]
[1769463577943,9.90002055,124.03,123.98,14.58904499]
[1769463578148,9.90002055,124.03,123.98,7.32224499]
[1769463578949,9.90002055,124.03,123.98,14.58904499]
[1769463579850,9.90002055,124.03,123.99,7.2662]
[1769463580046,9.90002055,124.05,123.99,7.3230413]
[1769463580452,9.90002055,124.05,124.0,7.3230413]
[1769463580651,9.90002055,124.05,124.01,14.58823937]
[1769463580948,9.90002055,124.07,124.02,7.32333937]
[1769463581942,9.90002055,124.07,124.02,14.58773937]
[1769463585142,9.90002055,124.07,124.03,14.58780122]
[1769463585347,12.28708054,124.08,124.03,14.58780122]
[1769463586347,9.90002055,124.08,124.03,14.58780122]
[1769463595759,12.28708054,124.08,124.03,14.58780122]
[1769463598454,9.90002055,124.08,124.03,14.58780122]
[1769463599564,9.64745999,124.09,124.04,6.77927498]
[1769463599765,2.38705999,124.09,124.05,6.74629902]
[1769463601067,17.25328838,124.1,124.05,6.74629902]
[1769463603669,9.99348838,124.1,124.05,14.00899902]
[1769463609967,2.38364555,124.11,124.07,6.43668043]
[1769463610165,12.37713393,124.13,124.07,6.43668043]
[1769463610367,12.37713393,124.13,124.08,7.2608]
[1769463610767,12.37713393,124.13,124.08,13.66841685]
[1769463615980,2.38364555,124.13,124.09,13.52733994]
[1769463617781,12.37713393,124.13,124.09,7.2601]
[1769463619077,12.37713393,124.13,124.08,13.42042197]
[1769463619683,2.38364555,124.12,124.08,13.42042197]
[1769463622780,12.37713393,124.13,124.08,13.42042197]
[1769463624684,0.06065909,124.12,124.09,0.05397248]
[1769463626483,2.44430464,124.12,124.09,0.05397248]
[1769463628186,0.06065909,124.12,124.09,0.05397248]
[1769463634386,11.51736976,124.15,124.11,5.71877987]
[1769463635888,11.51736976,124.15,124.12,0.05659546]
[1769463641394,2.38364555,124.16,124.12,5.63119324]
[1769463641588,333.23736976,124.17,124.12,5.63119324]
[1769463641789,2.38364555,124.17,124.12,5.63119324]
[1769463642893,2.38364555,124.17,124.13,12.79333505]
[1769463646395,11.51736976,124.19,124.14,12.73566156]
[1769463646600,9.13372421,124.23,124.14,5.47826156]
[1769463646896,2.38364555,124.2,124.15,12.71635228]
[1769463647290,2.38364555,124.2,124.17,0.05130056]
[1769463647595,2.38364555,124.2,124.17,5.51085284]
[1769463648194,2.38364555,124.2,124.14,7.2569]
[1769463648195,9.13372421,124.19,124.14,7.2569]
[1769463648394,2.38364555,124.18,124.14,7.2569]
[1769463650401,2.38364555,124.18,124.14,12.64413544]
[1769463652097,2.38364555,124.18,124.15,0.05116585]
[1769463653100,9.10694389,124.2,124.15,5.38605594]
[1769463653297,11.49058944,124.2,124.15,5.38605594]
[1769463655897,9.10694389,124.19,124.15,0.05116585]
[1769463656900,9.10694389,124.19,124.15,5.31893454]
[1769463657100,9.63784555,124.2,124.15,5.31893454]
[1769463657302,18.74478944,124.2,124.15,5.31893454]
[1769463658902,2.38364555,124.2,124.16,5.23536984]
[1769463659104,9.10694389,124.22,124.16,5.23536984]
[1769463660006,16.35994389,124.22,124.18,0.05204303]
[1769463660399,9.10694389,124.21,124.18,0.05204303]
[1769463666109,11.49058944,124.21,124.18,0.05204303]
[1769463667115,9.10694389,124.21,124.18,0.05204303]
[1769463671621,11.48663492,124.21,124.18,0.05204303]
[1769463675324,11.543252,124.21,124.16,12.49156984]
[1769463681629,8.067,124.32,124.22,112.8181]
[1769463681836,23.41953453,124.35,124.26,112.7801]
[1769463682029,23.41953453,124.35,124.29,7.2484]
[1769463682330,25.79922556,124.35,124.28,112.7669]
[1769463682524,23.41953453,124.35,124.29,112.7573]
[1769463682727,23.41953453,124.35,124.3,119.9964]
[1769463682927,23.41953453,124.35,124.3,120.0540181]
[1769463683333,25.79922556,124.37,124.31,7.2472]
[1769463683637,23.26716983,124.39,124.33,2.37969103]
[1769463683839,23.26716983,124.39,124.33,112.7208]
[1769463684137,23.26716983,124.39,124.33,115.10049103]
[1769463684332,0.0526903,124.37,124.35,0.05908794]
[1769463684536,25.79922556,124.41,124.35,0.05908794]
[1769463685338,25.79922556,124.4,124.35,0.05908794]
[1769463685840,23.38999056,124.37,124.29,2.37969103]
[1769463686032,2.37969103,124.36,124.29,2.37969103]
[1769463686630,112.6513,124.41,124.27,112.7676]
[1769463686631,25.76968159,124.34,124.27,2.37969103]
[1769463686836,2.37969103,124.33,124.25,115.17099103]
[1769463687636,2.37969103,124.33,124.27,7.2496]
[1769463690040,2.37969103,124.33,124.25,122.42169103]
[1769463690244,25.76968159,124.33,124.25,9.63039103]
[1769463691145,25.76968159,124.33,124.26,7.2502]
[1769463691644,23.38999056,124.36,124.29,2.37969103]
[1769463692032,2.37969103,124.37,124.29,2.37969103]
[1769463692742,2.37969103,124.37,124.3,7.2478]
[1769463693537,25.76968159,124.37,124.3,7.2478]
[1769463695244,25.76968159,124.37,124.31,7.2472]
[1769463695444,23.38999056,124.37,124.31,9.62689103]
[1769463700048,23.38999056,124.37,124.31,7.2472]
[1769463700247,112.613,124.45,124.29,421.53389103]
[1769463700248,23.38999056,124.48,124.34,112.7099]
[1769463700437,23.38999056,124.48,124.3,7.29654681]
[1769463700438,23.38999056,124.46,124.38,2.37969103]
[1769463700642,23.38999056,124.46,124.38,90.45969103]
[1769463700839,25.76968159,124.46,124.38,88.08]
[1769463701443,23.38999056,124.46,124.36,400.02909103]
[1769463701644,25.76968159,124.44,124.41,0.05418532]
[1769463702043,25.82436693,124.42,124.35,7.2451]
[1769463702239,23.4446759,124.42,124.36,112.6901]
[1769463702645,0.05468534,124.42,124.37,115.06359103]
[1769463703347,23.38999056,124.49,124.38,112.6753]
[1769463703553,25.76968159,124.46,124.38,0.05287372]
[1769463703856,25.76968159,124.46,124.38,112.6759]
[1769463704246,25.76968159,124.46,124.38,7.2431]
[1769463704451,23.38999056,124.43,124.35,422.9831]
[1769463704651,23.38999056,124.43,124.36,115.07269103]
[1769463705348,0.05274032,124.41,124.36,115.07269103]
[1769463705551,160.96,124.66,124.36,2.37969103]
[1769463705748,23.38763636,124.49,124.42,115.01889103]
[1769463705949,25.76732739,124.52,124.42,112.6375]
[1769463706152,23.38763636,124.52,124.45,7.2391]
[1769463706351,23.38763636,124.52,124.45,9.61879103]
[1769463706753,23.38763636,124.52,124.46,2.37969103]
[1769463706953,25.76732739,124.52,124.44,2.37969103]
[1769463707153,23.38763636,124.52,124.47,0.05573564]
[1769463708554,23.38763636,124.5,124.44,7.2396]
[1769463708754,23.38763636,124.5,124.42,2.37969103]
[1769463708949,2.43912891,124.51,124.42,7.241]
[1769463708950,25.73945957,124.49,124.42,7.241]
[1769463709252,2.37969103,124.47,124.39,115.03789103]
[1769463709452,25.73945957,124.47,124.39,115.03789103]
[1769463709849,25.79096824,124.47,124.39,115.03789103]
[1769463710054,23.41127721,124.47,124.4,112.6566]
[1769463710254,23.35976854,124.47,124.4,112.6566]
[1769463710654,0.05780114,124.45,124.39,9.62239103]
[1769463710849,0.05780114,124.45,124.41,115.02829103]
[1769463711059,2.37969103,124.48,124.42,0.05632592]
[1769463711558,23.35976854,124.48,124.42,7.29712592]
[1769463711754,112.5432,124.53,124.42,7.29712592]
[1769463712057,23.26716983,124.65,124.53,112.5346]
[1769463712358,23.26716983,124.65,124.55,112.5202]
[1769463712560,23.26716983,124.65,124.57,112.5016]
[1769463712748,23.26716983,124.65,124.58,112.55382113]
[1769463712948,23.26716983,124.65,124.59,112.4835]
[1769463713151,23.26716983,124.65,124.6,7.2303]
[1769463713348,0.94845477,124.65,124.6,112.4741]
[1769463713549,0.94845477,124.65,124.59,112.4837]
[1769463713752,0.94845477,124.65,124.6,7.2303]
[1769463714558,35.98810758,124.65,124.55,112.5164]
[1769463714750,35.98810758,124.65,124.61,0.05420378]
[1769463714956,35.98810758,124.65,124.55,112.5222]
[1769463715463,35.98810758,124.65,124.53,316.3]
[1769463715765,35.03965281,124.63,124.52,112.5414]
[1769463716259,35.03965281,124.63,124.55,7.2331]
[1769463716850,35.03965281,124.63,124.53,7.2345]
[1769463717660,42.26855281,124.63,124.53,7.2345]
[1769463717961,35.03965281,124.62,124.51,436.3342]
[1769463718357,35.03965281,124.62,124.51,429.0986]
[1769463718564,35.03965281,124.62,124.54,7.2341]
[1769463719265,32.33965281,124.62,124.54,7.2341]
[1769463719567,32.33965281,124.62,124.55,7.2331]
[1769463719859,0.94845477,124.65,124.51,316.54]
[1769463720163,6.04340998,124.73,124.61,112.4664]
[1769463720364,118.40380998,124.73,124.61,317.14]
[1769463720566,125.62690998,124.73,124.61,324.3695]
[1769463720765,118.40350998,124.73,124.61,7.2295]
[1769463721165,33.6896802,124.72,124.61,7.2295]
[1769463721765,33.6896802,124.72,124.62,119.6862]
[1769463722070,33.6896802,124.72,124.63,112.4488]
[1769463722458,39.73309018,124.71,124.59,6.04340998]
[1769463722659,33.6896802,124.7,124.58,396.8072]
[1769463722860,33.66007672,124.68,124.56,118.54930998]
[1769463723069,39.7034867,124.68,124.57,112.5044]
[1769463723257,39.7034867,124.68,124.56,112.5059]
[1769463724059,33.66007672,124.64,124.51,112.5496]
[1769463724258,33.66007672,124.61,124.51,112.5496]
[1769463724463,33.66007672,124.61,124.5,425.88088338]
[1769463724870,33.66007672,124.61,124.51,7.2357]
[1769463725173,0.0585518,124.57,124.51,7.2357]
[1769463727171,33.71862852,124.57,124.49,7.237]
[1769463727365,112.4322,124.66,124.53,112.59273634]
[1769463727566,33.68935262,124.69,124.6,112.4735]
[1769463727787,33.68935262,124.72,124.61,112.4663]
[1769463728281,33.68935262,124.72,124.62,7.2291]
[1769463729972,40.91345262,124.72,124.62,7.2291]
[1769463730573,33.68935262,124.71,124.6,112.4735]
[1769463730871,40.91415262,124.71,124.59,112.4842]
[1769463731185,33.68935262,124.69,124.58,112.4931]
[1769463731573,39.71580406,124.69,124.58,112.4931]
[1769463731981,39.71580406,124.69,124.59,7.2308]
[1769463733084,33.68935262,124.68,124.57,119.7342]
[1769463733268,33.68935262,124.68,124.57,7.2321]
[1769463733269,33.68935262,124.65,124.57,7.2321]
[1769463733471,33.68935262,124.65,124.54,112.5306]
[1769463734283,33.68935262,124.65,124.55,7.2333]
[1769463734476,33.68935262,124.65,124.57,112.5038]
[1769463734678,326.68935262,124.76,124.63,112.4477]
[1769463734979,33.68935262,124.75,124.65,112.4315]
[1769463735371,33.68935262,124.75,124.67,7.2263]
[1769463735778,33.68935262,124.75,124.64,112.4412]
[1769463735980,33.68935262,124.73,124.63,7.2288]
[1769463736287,33.68935262,124.7,124.58,112.4891]
[1769463736674,33.68935262,124.69,124.58,7.2312]
[1769463737285,33.68935262,124.67,124.58,7.2312]
[1769463738378,33.68935262,124.67,124.6,119.7073]
[1769463739188,33.68935262,124.67,124.58,7.2317]
[1769463739578,33.68935262,124.67,124.56,112.5064]
[1769463739880,112.3834,124.71,124.57,112.5043]
[1769463740083,336.895,124.8,124.67,112.4119]
[1769463740084,33.68935262,124.75,124.67,112.4119]
[1769463740279,33.68935262,124.75,124.67,112.4122]
[1769463740789,0.05790621,124.72,124.7,0.05353642]
[1769463740988,0.05790621,124.72,124.65,112.4295]
[1769463741283,0.05790621,124.72,124.64,119.6687]
[1769463741685,33.74725883,124.72,124.63,112.4499]